[Event "Titled Tuesday Blitz June 21 Late 2022"]
[White "Dobre, Claudiu-Cristian"]
[Black "Zhu, Jiner"]
[WhiteFideId "1211854"]
[BlackFideId "8608059"]
[WhiteElo "2528"]
[BlackElo "2654"]
[Result "1-0"]
[Round "06"]
[TimeControl "180+1"]
[Date "2022.06.22"]
[WhiteClock "0:00:58"]
[BlackClock "0:00:05"]

1. c4 {[%clk 0:03:00]}  Nf6 {[%clk 0:02:55]} 2. Nc3 {[%clk 0:03:00]}  e6 {[%clk 0:02:55]} 3. e4 {[%clk 0:02:59]}  d5 {[%clk 0:02:55]} 4. e5 {[%clk 0:02:59]}  d4 {[%clk 0:02:52]} 5. exf6 {[%clk 0:02:59]}  dxc3 {[%clk 0:02:53]} 6. fxg7 {[%clk 0:02:59]}  cxd2+ {[%clk 0:02:40]} 7. Qxd2 {[%clk 0:02:59]}  Qxd2+ {[%clk 0:02:39]} 8. Bxd2 {[%clk 0:03:00]}  Bxg7 {[%clk 0:02:40]} 9. O-O-O {[%clk 0:03:00]}  Nc6 {[%clk 0:02:35]} 10. Nf3 {[%clk 0:03:00]}  e5 {[%clk 0:02:32]} 11. Bc3 {[%clk 0:02:52]}  Be6 {[%clk 0:02:26]} 12. b3 {[%clk 0:02:26]}  O-O {[%clk 0:02:20]} 13. Bd3 {[%clk 0:02:21]}  Rad8 {[%clk 0:01:55]} 14. Rhe1 {[%clk 0:01:47]}  Bg4 {[%clk 0:01:52]} 15. Be4 {[%clk 0:01:40]}  Rxd1+ {[%clk 0:01:26]} 16. Rxd1 {[%clk 0:01:39]}  f5 {[%clk 0:01:25]} 17. Bd5+ {[%clk 0:01:38]}  Kh8 {[%clk 0:01:25]} 18. Bxc6 {[%clk 0:01:23]}  bxc6 {[%clk 0:01:25]} 19. Rd7 {[%clk 0:01:24]}  Bxf3 {[%clk 0:00:39]} 20. gxf3 {[%clk 0:01:23]}  Rc8 {[%clk 0:00:37]} 21. f4 {[%clk 0:01:23]}  Kg8 {[%clk 0:00:30]} 22. fxe5 {[%clk 0:01:17]}  f4 {[%clk 0:00:29]} 23. Kc2 {[%clk 0:01:13]}  c5 {[%clk 0:00:26]} 24. Kd3 {[%clk 0:01:12]}  a6 {[%clk 0:00:22]} 25. f3 {[%clk 0:01:11]}  Re8 {[%clk 0:00:14]} 26. Ke4 {[%clk 0:01:09]}  Re6 {[%clk 0:00:14]} 27. Rxc7 {[%clk 0:01:06]}  Rh6 {[%clk 0:00:14]} 28. Rxc5 {[%clk 0:01:01]}  Rxh2 {[%clk 0:00:14]} 29. Rc8+ {[%clk 0:01:01]}  Kf7 {[%clk 0:00:14]} 30. e6+ {[%clk 0:01:02]}  Kxe6 {[%clk 0:00:09]} 31. Bxg7 {[%clk 0:01:01]}  Rxa2 {[%clk 0:00:09]} 32. Bh6 {[%clk 0:01:00]}  Ra3 {[%clk 0:00:07]} 33. Rb8 {[%clk 0:01:00]}  a5 {[%clk 0:00:06]} 34. Rb6+ {[%clk 0:00:59]}  Kd7 {[%clk 0:00:05]} 35. Bf8 {[%clk 0:00:59]}  Ra2 {[%clk 0:00:05]} 36. Kxf4 {[%clk 0:00:59]}  Kc7 {[%clk 0:00:05]} 37. Rh6 {[%clk 0:00:58]} 1-0


[Site "https://www.chess.com"]

[Event "Titled Tuesday Blitz June 21 Late 2022"]
[White "Domingo Nunez, Ruben"]
[Black "Bintang, Rasyid A. Hidayat"]
[WhiteFideId "22245570"]
[BlackFideId "7105355"]
[WhiteElo "2376"]
[BlackElo "2408"]
[Result "1-0"]
[Round "06"]
[TimeControl "180+1"]
[Date "2022.06.22"]
[WhiteClock "0:01:18"]
[BlackClock "0:00:46"]

1. d4 {[%clk 0:03:00]}  d5 {[%clk 0:02:59]} 2. c4 {[%clk 0:02:56]}  Nc6 {[%clk 0:03:00]} 3. Nf3 {[%clk 0:02:54]}  Bg4 {[%clk 0:03:00]} 4. Qa4 {[%clk 0:02:52]}  Bxf3 {[%clk 0:02:38]} 5. gxf3 {[%clk 0:02:53]}  e5 {[%clk 0:02:37]} 6. Nc3 {[%clk 0:02:49]}  Nf6 {[%clk 0:02:31]} 7. Bg5 {[%clk 0:02:48]}  exd4 {[%clk 0:02:23]} 8. cxd5 {[%clk 0:02:30]}  dxc3 {[%clk 0:02:21]} 9. dxc6 {[%clk 0:02:30]}  b5 {[%clk 0:02:11]} 10. Qxb5 {[%clk 0:02:25]}  cxb2 {[%clk 0:02:07]} 11. Qxb2 {[%clk 0:02:24]}  Be7 {[%clk 0:02:07]} 12. Rd1 {[%clk 0:02:18]}  Qb8 {[%clk 0:02:02]} 13. Qe5 {[%clk 0:02:16]}  Qb4+ {[%clk 0:02:01]} 14. Bd2 {[%clk 0:02:17]}  Qd6 {[%clk 0:01:50]} 15. Qxd6 {[%clk 0:02:15]}  Bxd6 {[%clk 0:01:49]} 16. e3 {[%clk 0:02:07]}  O-O {[%clk 0:01:49]} 17. Ba6 {[%clk 0:02:07]}  Rad8 {[%clk 0:01:47]} 18. Ke2 {[%clk 0:02:07]}  Nd5 {[%clk 0:01:41]} 19. Ba5 {[%clk 0:02:05]}  Ne7 {[%clk 0:01:29]} 20. Bb7 {[%clk 0:02:00]}  f5 {[%clk 0:01:26]} 21. h4 {[%clk 0:01:51]}  Ng6 {[%clk 0:01:13]} 22. h5 {[%clk 0:01:48]}  Ne5 {[%clk 0:01:11]} 23. Rhg1 {[%clk 0:01:48]}  Nc4 {[%clk 0:01:11]} 24. Bc3 {[%clk 0:01:47]}  Rf7 {[%clk 0:01:00]} 25. h6 {[%clk 0:01:42]}  g6 {[%clk 0:01:00]} 26. Ba6 {[%clk 0:01:42]}  Nb6 {[%clk 0:00:56]} 27. Rd3 {[%clk 0:01:20]}  Re7 {[%clk 0:00:52]} 28. Bf6 {[%clk 0:01:19]}  Ree8 {[%clk 0:00:45]} 29. Bxd8 {[%clk 0:01:18]}  Rxd8 {[%clk 0:00:46]} 1-0


[Site "https://www.chess.com"]

[Event "Titled Tuesday Blitz June 21 Late 2022"]
[White "Dubov, Daniil"]
[Black "Koziorowicz, Michal"]
[WhiteFideId "24126055"]
[BlackFideId "21809194"]
[WhiteElo "2791"]
[BlackElo "2202"]
[Result "1-0"]
[Round "06"]
[TimeControl "180+1"]
[Date "2022.06.21"]
[WhiteClock "0:01:19"]
[BlackClock "0:00:04"]

1. e4 {[%clk 0:03:00]}  c5 {[%clk 0:02:59]} 2. Nf3 {[%clk 0:02:59]}  d6 {[%clk 0:03:00]} 3. d4 {[%clk 0:02:59]}  cxd4 {[%clk 0:03:01]} 4. Nxd4 {[%clk 0:02:59]}  Nf6 {[%clk 0:03:01]} 5. Nc3 {[%clk 0:02:58]}  g6 {[%clk 0:03:02]} 6. Bc4 {[%clk 0:02:56]}  Bg7 {[%clk 0:03:02]} 7. O-O {[%clk 0:02:56]}  O-O {[%clk 0:03:01]} 8. Re1 {[%clk 0:02:57]}  Nc6 {[%clk 0:03:02]} 9. h3 {[%clk 0:02:57]}  Bd7 {[%clk 0:02:59]} 10. Nf3 {[%clk 0:02:56]}  Rc8 {[%clk 0:02:59]} 11. Bb3 {[%clk 0:02:55]}  a6 {[%clk 0:02:58]} 12. Bg5 {[%clk 0:02:53]}  Qa5 {[%clk 0:02:55]} 13. Qd2 {[%clk 0:02:51]}  Rfe8 {[%clk 0:02:54]} 14. Rad1 {[%clk 0:02:45]}  Ne5 {[%clk 0:02:43]} 15. Nxe5 {[%clk 0:02:42]}  Qxe5 {[%clk 0:02:44]} 16. Bf4 {[%clk 0:02:39]}  Qh5 {[%clk 0:02:30]} 17. e5 {[%clk 0:02:36]}  dxe5 {[%clk 0:02:29]} 18. Rxe5 {[%clk 0:02:37]}  Qh4 {[%clk 0:02:12]} 19. Nd5 {[%clk 0:02:22]}  Nxd5 {[%clk 0:02:02]} 20. Rxd5 {[%clk 0:02:21]}  Bc6 {[%clk 0:01:56]} 21. Bg5 {[%clk 0:02:20]}  Qe4 {[%clk 0:01:54]} 22. Re1 {[%clk 0:02:15]}  Bxd5 {[%clk 0:01:50]} 23. Rxe4 {[%clk 0:02:10]}  Bxe4 {[%clk 0:01:51]} 24. Qf4 {[%clk 0:02:07]}  Bf5 {[%clk 0:01:43]} 25. g4 {[%clk 0:02:07]}  e5 {[%clk 0:01:43]} 26. Qb4 {[%clk 0:02:05]}  Be6 {[%clk 0:01:41]} 27. Bxe6 {[%clk 0:02:03]}  Rxe6 {[%clk 0:01:42]} 28. Qxb7 {[%clk 0:02:03]}  Rec6 {[%clk 0:01:34]} 29. c3 {[%clk 0:02:03]}  h6 {[%clk 0:01:34]} 30. Be3 {[%clk 0:02:02]}  R8c7 {[%clk 0:01:31]} 31. Qb3 {[%clk 0:02:00]}  Rd7 {[%clk 0:01:26]} 32. Qa4 {[%clk 0:01:59]}  Rcd6 {[%clk 0:01:25]} 33. Qc4 {[%clk 0:01:56]}  a5 {[%clk 0:01:18]} 34. Kg2 {[%clk 0:01:55]}  Kh7 {[%clk 0:01:15]} 35. a4 {[%clk 0:01:56]}  f5 {[%clk 0:01:13]} 36. b4 {[%clk 0:01:56]}  f4 {[%clk 0:01:12]} 37. Bc5 {[%clk 0:01:55]}  Rd2 {[%clk 0:01:07]} 38. bxa5 {[%clk 0:01:54]}  Rc2 {[%clk 0:01:04]} 39. a6 {[%clk 0:01:53]}  e4 {[%clk 0:01:00]} 40. Qxe4 {[%clk 0:01:52]}  Rxc3 {[%clk 0:00:47]} 41. a7 {[%clk 0:01:52]}  Rd8 {[%clk 0:00:48]} 42. Bb6 {[%clk 0:01:48]}  f3+ {[%clk 0:00:45]} 43. Kg3 {[%clk 0:01:39]}  Rf8 {[%clk 0:00:22]} 44. a8=Q {[%clk 0:01:28]}  Rxa8 {[%clk 0:00:19]} 45. Qxa8 {[%clk 0:01:29]}  Be5+ {[%clk 0:00:19]} 46. Kh4 {[%clk 0:01:29]}  Bf6+ {[%clk 0:00:08]} 47. g5 {[%clk 0:01:29]}  hxg5+ {[%clk 0:00:09]} 48. Kg4 {[%clk 0:01:29]}  Bg7 {[%clk 0:00:06]} 49. Qe4 {[%clk 0:01:25]}  Rb3 {[%clk 0:00:03]} 50. a5 {[%clk 0:01:24]}  Ra3 {[%clk 0:00:04]} 51. Qxf3 {[%clk 0:01:22]}  Ra4+ {[%clk 0:00:03]} 52. Kg3 {[%clk 0:01:21]}  Be5+ {[%clk 0:00:03]} 53. Kg2 {[%clk 0:01:21]}  Rf4 {[%clk 0:00:04]} 54. Qb7+ {[%clk 0:01:19]} 1-0


[Site "https://www.chess.com"]

[Event "Titled Tuesday Blitz June 21 Late 2022"]
[White "Estrada Nieto, Julian"]
[Black "Ricaurte Lopez, Juan Carlos"]
[WhiteFideId "5101018"]
[BlackFideId "3600327"]
[WhiteElo "2252"]
[BlackElo "2209"]
[Result "1-0"]
[Round "06"]
[TimeControl "180+1"]
[Date "2022.06.22"]
[WhiteClock "0:00:22"]
[BlackClock "0:00:07"]

1. e4 {[%clk 0:03:00]}  e5 {[%clk 0:02:58]} 2. Nf3 {[%clk 0:03:00]}  Nc6 {[%clk 0:02:57]} 3. Bb5 {[%clk 0:03:00]}  a6 {[%clk 0:02:55]} 4. Ba4 {[%clk 0:03:00]}  Nf6 {[%clk 0:02:53]} 5. O-O {[%clk 0:03:00]}  Be7 {[%clk 0:02:48]} 6. Re1 {[%clk 0:02:59]}  b5 {[%clk 0:02:46]} 7. Bb3 {[%clk 0:03:00]}  O-O {[%clk 0:02:46]} 8. a4 {[%clk 0:03:00]}  Rb8 {[%clk 0:02:43]} 9. axb5 {[%clk 0:02:59]}  axb5 {[%clk 0:02:41]} 10. c3 {[%clk 0:03:00]}  d5 {[%clk 0:02:14]} 11. exd5 {[%clk 0:02:54]}  Nxd5 {[%clk 0:02:13]} 12. Nxe5 {[%clk 0:02:54]}  Nxe5 {[%clk 0:02:12]} 13. Rxe5 {[%clk 0:02:55]}  c6 {[%clk 0:02:09]} 14. d4 {[%clk 0:02:54]}  Bd6 {[%clk 0:02:08]} 15. Re1 {[%clk 0:02:45]}  Qh4 {[%clk 0:02:06]} 16. g3 {[%clk 0:02:45]}  Qh3 {[%clk 0:02:05]} 17. Qf3 {[%clk 0:02:11]}  Bg4 {[%clk 0:02:02]} 18. Qg2 {[%clk 0:02:11]}  Qh5 {[%clk 0:02:01]} 19. Nd2 {[%clk 0:02:09]}  f5 {[%clk 0:01:55]} 20. Bxd5+ {[%clk 0:02:05]}  cxd5 {[%clk 0:01:53]} 21. Qxd5+ {[%clk 0:02:03]}  Kh8 {[%clk 0:01:53]} 22. Qxd6 {[%clk 0:02:01]}  f4 {[%clk 0:01:52]} 23. Re5 {[%clk 0:01:44]}  Qh3 {[%clk 0:01:23]} 24. gxf4 {[%clk 0:01:09]}  Rbd8 {[%clk 0:00:37]} 25. Qe7 {[%clk 0:00:51]}  Qd3 {[%clk 0:00:19]} 26. Rg5 {[%clk 0:00:34]}  g6 {[%clk 0:00:07]} 27. Ra7 {[%clk 0:00:22]} 1-0


[Site "https://www.chess.com"]

[Event "Titled Tuesday Blitz June 21 Late 2022"]
[White "Fedoseev, Vladimir"]
[Black "Khismatullin, Denis"]
[WhiteFideId "24130737"]
[BlackFideId "4142578"]
[WhiteElo "2726"]
[BlackElo "2543"]
[Result "0-1"]
[Round "06"]
[TimeControl "180+1"]
[Date "2022.06.21"]
[WhiteClock "0:00:01"]
[BlackClock "0:00:04"]

1. e4 {[%clk 0:02:59]}  d6 {[%clk 0:02:57]} 2. d4 {[%clk 0:02:58]}  Nf6 {[%clk 0:02:57]} 3. Nc3 {[%clk 0:02:58]}  e5 {[%clk 0:02:58]} 4. Nf3 {[%clk 0:02:56]}  Nbd7 {[%clk 0:02:58]} 5. h3 {[%clk 0:02:56]}  c6 {[%clk 0:02:56]} 6. Be3 {[%clk 0:02:52]}  b5 {[%clk 0:02:56]} 7. a3 {[%clk 0:02:50]}  Bb7 {[%clk 0:02:56]} 8. g4 {[%clk 0:02:40]}  h6 {[%clk 0:02:56]} 9. Bg2 {[%clk 0:02:40]}  Be7 {[%clk 0:02:51]} 10. Nh4 {[%clk 0:02:38]}  g6 {[%clk 0:02:46]} 11. Nf3 {[%clk 0:02:37]}  a5 {[%clk 0:02:45]} 12. Nd2 {[%clk 0:02:30]}  exd4 {[%clk 0:02:35]} 13. Bxd4 {[%clk 0:02:29]}  b4 {[%clk 0:02:36]} 14. Ne2 {[%clk 0:02:27]}  c5 {[%clk 0:02:36]} 15. Be3 {[%clk 0:02:26]}  d5 {[%clk 0:02:26]} 16. exd5 {[%clk 0:02:25]}  Nxd5 {[%clk 0:02:15]} 17. Nc4 {[%clk 0:01:57]}  Nxe3 {[%clk 0:02:15]} 18. Nxe3 {[%clk 0:01:57]}  Bxg2 {[%clk 0:02:15]} 19. Nxg2 {[%clk 0:01:58]}  Bf6 {[%clk 0:02:15]} 20. Rb1 {[%clk 0:01:55]}  Ne5 {[%clk 0:01:54]} 21. Nef4 {[%clk 0:01:47]}  Qxd1+ {[%clk 0:01:45]} 22. Kxd1 {[%clk 0:01:45]}  O-O-O+ {[%clk 0:01:42]} 23. Ke2 {[%clk 0:01:42]}  Rhe8 {[%clk 0:01:39]} 24. Ne3 {[%clk 0:01:37]}  Nc4 {[%clk 0:01:30]} 25. axb4 {[%clk 0:01:11]}  Rd2+ {[%clk 0:01:07]} 26. Kf3 {[%clk 0:01:08]}  Bh4 {[%clk 0:01:01]} 27. Rhf1 {[%clk 0:00:52]}  Rxf2+ {[%clk 0:00:17]} 28. Rxf2 {[%clk 0:00:51]}  Rxe3+ {[%clk 0:00:17]} 29. Kg2 {[%clk 0:00:51]}  Bxf2 {[%clk 0:00:18]} 30. Kxf2 {[%clk 0:00:51]}  cxb4 {[%clk 0:00:17]} 31. b3 {[%clk 0:00:39]}  Re4 {[%clk 0:00:17]} 32. Nd3 {[%clk 0:00:38]}  Na3 {[%clk 0:00:17]} 33. Ra1 {[%clk 0:00:37]}  Kc7 {[%clk 0:00:15]} 34. c4 {[%clk 0:00:34]}  Rd4 {[%clk 0:00:13]} 35. Ke2 {[%clk 0:00:32]}  f5 {[%clk 0:00:10]} 36. gxf5 {[%clk 0:00:28]}  gxf5 {[%clk 0:00:11]} 37. Rf1 {[%clk 0:00:24]}  Re4+ {[%clk 0:00:12]} 38. Kd2 {[%clk 0:00:20]}  a4 {[%clk 0:00:12]} 39. Nxb4 {[%clk 0:00:13]}  axb3 {[%clk 0:00:12]} 40. Kc3 {[%clk 0:00:11]}  Nxc4 {[%clk 0:00:11]} 41. Nd3 {[%clk 0:00:05]}  Ne3 {[%clk 0:00:07]} 42. Rf3 {[%clk 0:00:04]}  Kd6 {[%clk 0:00:06]} 43. Kxb3 {[%clk 0:00:04]}  Kd5 {[%clk 0:00:04]} 44. Nf4+ {[%clk 0:00:04]}  Ke5 {[%clk 0:00:04]} 45. Nd3+ {[%clk 0:00:03]}  Kf6 {[%clk 0:00:04]} 46. Nc5 {[%clk 0:00:02]}  Re7 {[%clk 0:00:03]} 47. Kc3 {[%clk 0:00:02]}  Kg5 {[%clk 0:00:03]} 48. Kd4 {[%clk 0:00:02]}  f4 {[%clk 0:00:03]} 49. Ne4+ {[%clk 0:00:02]}  Kf5 {[%clk 0:00:04]} 50. Nd6+ {[%clk 0:00:01]}  Ke6 {[%clk 0:00:04]} 0-1


[Site "https://www.chess.com"]

[Event "Titled Tuesday Blitz June 21 Late 2022"]
[White "Fiorito, Fabian"]
[Black "Zhou, Qiyu"]
[WhiteFideId "100200"]
[BlackFideId "505161"]
[WhiteElo "2395"]
[BlackElo "1925"]
[Result "1-0"]
[Round "06"]
[TimeControl "180+1"]
[Date "2022.06.22"]
[WhiteClock "0:00:18"]
[BlackClock "0:00:05"]

1. Nf3 {[%clk 0:03:00]}  Nf6 {[%clk 0:02:59]} 2. g3 {[%clk 0:03:01]}  d5 {[%clk 0:02:57]} 3. Bg2 {[%clk 0:03:01]}  g6 {[%clk 0:02:57]} 4. O-O {[%clk 0:03:01]}  Bg7 {[%clk 0:02:57]} 5. d4 {[%clk 0:03:02]}  O-O {[%clk 0:02:56]} 6. c4 {[%clk 0:03:02]}  c6 {[%clk 0:02:56]} 7. cxd5 {[%clk 0:03:02]}  cxd5 {[%clk 0:02:57]} 8. Ne5 {[%clk 0:03:03]}  Nc6 {[%clk 0:02:56]} 9. Nxc6 {[%clk 0:03:02]}  bxc6 {[%clk 0:02:57]} 10. Nc3 {[%clk 0:03:02]}  Bf5 {[%clk 0:02:46]} 11. Bf4 {[%clk 0:02:47]}  Qd7 {[%clk 0:02:44]} 12. Na4 {[%clk 0:02:41]}  Bh3 {[%clk 0:02:32]} 13. Nc5 {[%clk 0:02:19]}  Qf5 {[%clk 0:02:27]} 14. Qd3 {[%clk 0:02:13]}  Qxd3 {[%clk 0:01:59]} 15. Nxd3 {[%clk 0:02:12]}  Bxg2 {[%clk 0:01:58]} 16. Kxg2 {[%clk 0:02:13]}  Nh5 {[%clk 0:01:59]} 17. Be5 {[%clk 0:02:10]}  f6 {[%clk 0:01:54]} 18. Bc7 {[%clk 0:02:10]}  Rfc8 {[%clk 0:01:54]} 19. Ba5 {[%clk 0:02:09]}  e5 {[%clk 0:01:54]} 20. e3 {[%clk 0:02:01]}  exd4 {[%clk 0:01:45]} 21. g4 {[%clk 0:01:59]}  dxe3 {[%clk 0:01:40]} 22. gxh5 {[%clk 0:01:59]}  d4 {[%clk 0:01:27]} 23. hxg6 {[%clk 0:01:55]}  hxg6 {[%clk 0:01:25]} 24. Bb4 {[%clk 0:01:52]}  f5 {[%clk 0:01:21]} 25. Bc5 {[%clk 0:01:48]}  Rd8 {[%clk 0:01:18]} 26. Rfe1 {[%clk 0:01:41]}  Bh6 {[%clk 0:00:57]} 27. f4 {[%clk 0:01:20]}  Bg7 {[%clk 0:00:46]} 28. Kf3 {[%clk 0:01:20]}  a5 {[%clk 0:00:44]} 29. Rac1 {[%clk 0:01:18]}  Rab8 {[%clk 0:00:39]} 30. Re2 {[%clk 0:01:18]}  Kf7 {[%clk 0:00:32]} 31. Rg1 {[%clk 0:01:15]}  Rh8 {[%clk 0:00:31]} 32. Rg3 {[%clk 0:01:06]}  Rh4 {[%clk 0:00:26]} 33. Reg2 {[%clk 0:01:02]}  Rh6 {[%clk 0:00:20]} 34. h4 {[%clk 0:00:53]}  Bf6 {[%clk 0:00:16]} 35. Bd6 {[%clk 0:00:29]}  Rg8 {[%clk 0:00:16]} 36. Be5 {[%clk 0:00:26]}  Rxh4 {[%clk 0:00:15]} 37. Bxf6 {[%clk 0:00:25]}  Kxf6 {[%clk 0:00:15]} 38. Ne5 {[%clk 0:00:23]}  g5 {[%clk 0:00:14]} 39. Rxg5 {[%clk 0:00:19]}  Rxg5 {[%clk 0:00:14]} 40. Rxg5 {[%clk 0:00:20]}  Rh2 {[%clk 0:00:13]} 41. Rg2 {[%clk 0:00:19]}  Rh1 {[%clk 0:00:13]} 42. Ke2 {[%clk 0:00:17]}  Rb1 {[%clk 0:00:12]} 43. Kd3 {[%clk 0:00:17]}  Rd1+ {[%clk 0:00:12]} 44. Kc4 {[%clk 0:00:15]}  Rd2 {[%clk 0:00:12]} 45. Rg1 {[%clk 0:00:15]}  Rxb2 {[%clk 0:00:11]} 46. Kxd4 {[%clk 0:00:14]}  Rxa2 {[%clk 0:00:12]} 47. Kxe3 {[%clk 0:00:14]}  Ra4 {[%clk 0:00:12]} 48. Rg6+ {[%clk 0:00:15]}  Ke7 {[%clk 0:00:12]} 49. Rxc6 {[%clk 0:00:16]}  Re4+ {[%clk 0:00:11]} 50. Kf3 {[%clk 0:00:16]}  a4 {[%clk 0:00:12]} 51. Ra6 {[%clk 0:00:16]}  Kd8 {[%clk 0:00:06]} 52. Rf6 {[%clk 0:00:15]}  a3 {[%clk 0:00:06]} 53. Ra6 {[%clk 0:00:15]}  Re1 {[%clk 0:00:03]} 54. Rxa3 {[%clk 0:00:15]}  Rf1+ {[%clk 0:00:03]} 55. Ke3 {[%clk 0:00:14]}  Re1+ {[%clk 0:00:04]} 56. Kf2 {[%clk 0:00:15]}  Re4 {[%clk 0:00:04]} 57. Rd3+ {[%clk 0:00:15]}  Ke8 {[%clk 0:00:03]} 58. Kf3 {[%clk 0:00:16]}  Re1 {[%clk 0:00:03]} 59. Nc6 {[%clk 0:00:14]}  Rf1+ {[%clk 0:00:03]} 60. Kg3 {[%clk 0:00:14]}  Rg1+ {[%clk 0:00:03]} 61. Kf2 {[%clk 0:00:15]}  Rh1 {[%clk 0:00:04]} 62. Nd4 {[%clk 0:00:15]}  Rh4 {[%clk 0:00:03]} 63. Kg3 {[%clk 0:00:15]}  Rg4+ {[%clk 0:00:04]} 64. Kf3 {[%clk 0:00:15]}  Rg1 {[%clk 0:00:04]} 65. Nxf5 {[%clk 0:00:16]}  Rf1+ {[%clk 0:00:04]} 66. Ke4 {[%clk 0:00:16]}  Re1+ {[%clk 0:00:05]} 67. Re3 {[%clk 0:00:17]}  Rh1 {[%clk 0:00:05]} 68. Nd6+ {[%clk 0:00:17]}  Kf8 {[%clk 0:00:05]} 69. Ke5 {[%clk 0:00:17]}  Ra1 {[%clk 0:00:04]} 70. f5 {[%clk 0:00:17]}  Ra5+ {[%clk 0:00:05]} 71. Kf6 {[%clk 0:00:18]}  Ra6 {[%clk 0:00:05]} 72. Re8# {[%clk 0:00:18]} 1-0


[Site "https://www.chess.com"]

[Event "Titled Tuesday Blitz June 21 Late 2022"]
[White "Fishbein, Alexander"]
[Black "Petrovic, Aleksa"]
[WhiteFideId "2000377"]
[BlackFideId "967629"]
[WhiteElo "2620"]
[BlackElo "2490"]
[Result "1-0"]
[Round "06"]
[TimeControl "180+1"]
[Date "2022.06.22"]
[WhiteClock "0:00:09"]
[BlackClock "0:00:03"]

1. Nf3 {[%clk 0:02:53]}  Nf6 {[%clk 0:02:57]} 2. c4 {[%clk 0:02:52]}  e6 {[%clk 0:02:57]} 3. g3 {[%clk 0:02:51]}  b6 {[%clk 0:02:56]} 4. Bg2 {[%clk 0:02:51]}  Bb7 {[%clk 0:02:57]} 5. O-O {[%clk 0:02:50]}  c5 {[%clk 0:02:57]} 6. Nc3 {[%clk 0:02:50]}  a6 {[%clk 0:02:56]} 7. Re1 {[%clk 0:02:47]}  Be7 {[%clk 0:02:53]} 8. e4 {[%clk 0:02:47]}  d6 {[%clk 0:02:53]} 9. d4 {[%clk 0:02:46]}  cxd4 {[%clk 0:02:53]} 10. Nxd4 {[%clk 0:02:46]}  Qc7 {[%clk 0:02:47]} 11. Be3 {[%clk 0:02:39]}  O-O {[%clk 0:02:46]} 12. Rc1 {[%clk 0:02:38]}  Nbd7 {[%clk 0:02:45]} 13. g4 {[%clk 0:02:21]}  Ne5 {[%clk 0:02:32]} 14. g5 {[%clk 0:02:15]}  Nfd7 {[%clk 0:02:16]} 15. b3 {[%clk 0:02:05]}  Nc5 {[%clk 0:02:06]} 16. Rf1 {[%clk 0:01:40]}  Ned3 {[%clk 0:01:31]} 17. Rc2 {[%clk 0:01:38]}  g6 {[%clk 0:01:19]} 18. a3 {[%clk 0:01:33]}  e5 {[%clk 0:01:06]} 19. Nde2 {[%clk 0:01:24]}  Nf4 {[%clk 0:00:52]} 20. Bxf4 {[%clk 0:01:13]}  exf4 {[%clk 0:00:52]} 21. b4 {[%clk 0:01:08]}  Ne6 {[%clk 0:00:51]} 22. Nd5 {[%clk 0:01:07]}  Qd8 {[%clk 0:00:50]} 23. h4 {[%clk 0:00:58]}  h6 {[%clk 0:00:46]} 24. Nexf4 {[%clk 0:00:40]}  Nxf4 {[%clk 0:00:41]} 25. Nxf4 {[%clk 0:00:41]}  hxg5 {[%clk 0:00:41]} 26. Nd5 {[%clk 0:00:36]}  gxh4 {[%clk 0:00:38]} 27. Qg4 {[%clk 0:00:35]}  Bc8 {[%clk 0:00:35]} 28. Qf3 {[%clk 0:00:28]}  Be6 {[%clk 0:00:33]} 29. Bh3 {[%clk 0:00:27]}  Bxd5 {[%clk 0:00:22]} 30. cxd5 {[%clk 0:00:26]}  Bf6 {[%clk 0:00:21]} 31. Kh1 {[%clk 0:00:25]}  Be5 {[%clk 0:00:21]} 32. Rg1 {[%clk 0:00:24]}  Ra7 {[%clk 0:00:15]} 33. Qh5 {[%clk 0:00:23]}  Qf6 {[%clk 0:00:13]} 34. Bf5 {[%clk 0:00:19]}  Kg7 {[%clk 0:00:11]} 35. Qg4 {[%clk 0:00:18]}  Rh8 {[%clk 0:00:10]} 36. f4 {[%clk 0:00:12]}  Bd4 {[%clk 0:00:08]} 37. e5 {[%clk 0:00:11]}  dxe5 {[%clk 0:00:06]} 38. Rc6 {[%clk 0:00:11]}  Bxg1 {[%clk 0:00:03]} 39. Rxf6 {[%clk 0:00:10]}  Kxf6 {[%clk 0:00:03]} 40. fxe5+ {[%clk 0:00:10]}  Kxe5 {[%clk 0:00:03]} 41. Qe4+ {[%clk 0:00:10]}  Kd6 {[%clk 0:00:02]} 42. Be6 {[%clk 0:00:08]}  fxe6 {[%clk 0:00:01]} 43. Qxe6+ {[%clk 0:00:08]}  Kc7 {[%clk 0:00:02]} 44. Kxg1 {[%clk 0:00:08]}  Rd8 {[%clk 0:00:01]} 45. Qe7+ {[%clk 0:00:08]}  Rd7 {[%clk 0:00:02]} 46. Qe5+ {[%clk 0:00:08]}  Kc8 {[%clk 0:00:01]} 47. d6 {[%clk 0:00:08]}  Rab7 {[%clk 0:00:01]} 48. Qe8+ {[%clk 0:00:08]}  Rd8 {[%clk 0:00:02]} 49. Qc6+ {[%clk 0:00:08]}  Kb8 {[%clk 0:00:02]} 50. Kh2 {[%clk 0:00:07]}  Rbd7 {[%clk 0:00:02]} 51. Qxb6+ {[%clk 0:00:08]}  Ka8 {[%clk 0:00:03]} 52. Qxa6+ {[%clk 0:00:08]}  Kb8 {[%clk 0:00:04]} 53. Qb6+ {[%clk 0:00:08]}  Ka8 {[%clk 0:00:04]} 54. Qc6+ {[%clk 0:00:09]}  Kb8 {[%clk 0:00:04]} 55. Qb5+ {[%clk 0:00:09]}  Ka8 {[%clk 0:00:05]} 56. Qa6+ {[%clk 0:00:09]}  Kb8 {[%clk 0:00:05]} 57. Qb5+ {[%clk 0:00:09]}  Ka8 {[%clk 0:00:05]} 58. a4 {[%clk 0:00:09]}  Rxd6 {[%clk 0:00:05]} 59. a5 {[%clk 0:00:09]}  Rd2+ {[%clk 0:00:05]} 60. Kh3 {[%clk 0:00:09]}  R8d3+ {[%clk 0:00:04]} 61. Kxh4 {[%clk 0:00:09]}  Rd4+ {[%clk 0:00:05]} 62. Kg3 {[%clk 0:00:10]}  R4d3+ {[%clk 0:00:05]} 63. Kf4 {[%clk 0:00:10]}  Rd4+ {[%clk 0:00:02]} 64. Ke3 {[%clk 0:00:10]}  Rd8 {[%clk 0:00:02]} 65. Qc6+ {[%clk 0:00:10]}  Kb8 {[%clk 0:00:02]} 66. Qb6+ {[%clk 0:00:10]}  Ka8 {[%clk 0:00:02]} 67. a6 {[%clk 0:00:11]}  R2d3+ {[%clk 0:00:02]} 68. Ke4 {[%clk 0:00:11]}  R3d7 {[%clk 0:00:02]} 69. Qc6+ {[%clk 0:00:11]}  Ka7 {[%clk 0:00:02]} 70. b5 {[%clk 0:00:11]}  Re7+ {[%clk 0:00:02]} 71. Kf4 {[%clk 0:00:11]}  Red7 {[%clk 0:00:02]} 72. Qc5+ {[%clk 0:00:10]}  Ka8 {[%clk 0:00:03]} 73. b6 {[%clk 0:00:10]}  Rd3 {[%clk 0:00:03]} 74. Qc6+ {[%clk 0:00:09]} 1-0


[Site "https://www.chess.com"]